bitfinex/quotes_ETHUSD_20241108
["timestamp","ask_amount","ask_price","bid_price","bid_amount"]
[1731086694667,3.0,2896.9,2896.2,0.8211]
[1731086697692,3.7048688,2896.9,2896.2,0.8211]
[1731086698484,1.46791732,2896.8,2896.2,0.8211]
[1731086698690,3.7048688,2896.9,2896.2,0.8211]
[1731086698890,1.4680417,2896.8,2896.2,0.8211]
[1731086699079,4.06729105,2896.7,2896.2,0.8211]
[1731086699282,1.06729105,2896.7,2896.2,0.8211]
[1731086699455,0.55,2896.4,2895.3,0.7999]
[1731086699656,3.58733904,2896.3,2895.3,0.7999]
[1731086699960,3.7048688,2896.3,2895.3,0.7999]
[1731086700162,1.66348688,2896.2,2895.3,0.7999]
[1731086700467,3.0,2896.0,2895.3,0.7999]
[1731086700667,0.55,2895.9,2895.3,0.7999]
[1731086701303,2.01864266,2895.9,2895.3,0.7999]
[1731086701506,5.49084042,2895.8,2895.3,0.7999]
[1731086701660,4.1916427,2895.7,2895.3,0.7999]
[1731086702009,3.0,2895.7,2895.3,0.7999]
[1731086704168,12.38,2895.8,2895.3,0.7999]
[1731086704169,12.38,2895.8,2895.3,0.802]
[1731086704370,1.4097376,2896.4,2894.8,3.34618197]
[1731086704371,0.7048688,2896.4,2895.4,0.89447439]
[1731086704571,1.0573032,2896.5,2895.8,0.8233]
[1731086704572,13.0848688,2896.5,2895.8,0.8233]
[1731086704771,2.49250906,2896.4,2895.8,0.8233]
[1731086705003,13.0848688,2896.5,2895.8,0.8233]
[1731086705294,12.38,2896.5,2895.8,0.8233]
[1731086706573,3.0,2896.4,2895.8,0.8233]
[1731086706875,0.7048688,2896.7,2896.0,0.8195]
[1731086707108,1.78796588,2896.6,2896.0,0.8195]
[1731086707291,0.7048688,2896.7,2896.0,0.8195]
[1731086707596,0.90586056,2896.6,2896.0,0.8195]
[1731086707802,0.7048688,2896.7,2896.0,0.8195]
[1731086708110,5.49337743,2896.6,2896.0,0.8195]
[1731086708280,0.90599487,2896.5,2896.0,0.8195]
[1731086708483,0.7048688,2896.5,2896.0,0.8195]
[1731086708724,0.7048688,2896.9,2896.2,0.0021]
[1731086709016,0.7048688,2897.1,2896.4,0.8018]
[1731086709207,0.7048688,2897.5,2897.0,0.0021]
[1731086709372,1.0573032,2897.7,2897.0,0.0021]
[1731086709373,0.7048688,2897.6,2897.2,0.0021]
[1731086709581,0.7048688,2898.0,2897.6,0.7974]
[1731086709884,0.7048688,2898.3,2897.6,0.7974]
[1731086710082,0.1762172,2898.3,2897.6,0.7974]
[1731086710287,0.7048688,2898.5,2897.7,0.8218]
[1731086710610,0.5882503,2898.4,2897.8,0.8218]
[1731086710906,0.7048688,2898.6,2897.8,0.8218]
[1731086711106,0.7048688,2898.7,2897.8,0.8218]
[1731086711272,0.7048688,2898.7,2897.8,0.8239]
[1731086711273,0.31753996,2898.6,2897.8,0.8239]
[1731086711475,0.7048688,2898.7,2897.8,0.8218]
[1731086711779,0.1762172,2898.6,2897.8,0.8239]
[1731086712006,0.7048688,2898.9,2897.8,0.8239]
[1731086712318,1.6787376,2899.2,2898.2,0.7807]
[1731086712319,0.7048688,2899.2,2898.2,0.7807]
[1731086712481,0.7048688,2899.3,2898.2,0.7807]
[1731086712673,0.58731579,2899.2,2898.5,0.7807]
[1731086712874,0.7048688,2899.1,2898.2,0.7807]
[1731086713117,1.25671847,2899.0,2898.2,0.7807]
[1731086713280,0.58730118,2898.9,2898.2,0.7807]
[1731086713691,0.23494732,2899.0,2898.2,0.7807]
[1731086713906,3.55,2898.9,2898.2,0.7807]
[1731086714089,0.55,2898.9,2898.2,0.7807]
[1731086714835,0.55,2898.7,2897.9,0.7827]
[1731086717381,0.55,2898.8,2897.9,0.7827]
[1731086717504,0.55,2898.6,2897.9,0.7827]
[1731086717706,3.0,2898.4,2897.9,0.7827]
[1731086721543,3.0,2898.5,2897.9,0.7827]
[1731086723328,12.93,2898.4,2897.3,0.7624]
[1731086723644,0.55,2898.2,2897.3,0.7624]
[1731086723855,0.55,2898.0,2897.3,0.7624]
[1731086724612,1.593,2898.1,2897.3,0.7624]
[1731086724873,15.38,2898.3,2896.6,0.01]
[1731086724874,15.38,2898.3,2897.5,0.0021]
[1731086725055,3.0,2898.5,2897.6,0.7909]
[1731086725416,3.0,2898.5,2897.6,0.793]
[1731086727063,3.0,2898.5,2897.6,0.7909]
[1731086727218,0.55,2898.4,2897.6,0.7909]
[1731086727418,0.355,2898.3,2897.6,0.7909]
[1731086728029,0.355,2898.3,2897.6,0.793]
[1731086728259,0.355,2898.3,2897.6,0.7909]
[1731086728427,0.355,2898.3,2897.6,0.793]
[1731086728628,0.355,2898.3,2897.6,0.7909]
[1731086730161,12.735,2898.3,2897.6,0.7909]
[1731086730378,4.2735,2898.2,2897.6,0.7909]
[1731086732592,0.55,2898.1,2897.6,0.7909]
[1731086732886,0.55,2897.9,2897.2,0.7606]
[1731086733885,3.0,2898.0,2897.2,0.7606]
[1731086734056,1.538,2897.9,2897.2,0.7606]
[1731086734580,1.538,2897.9,2896.5,3.34211008]
[1731086734581,1.538,2897.9,2897.4,0.7781]
[1731086735163,3.0,2898.0,2897.4,0.7781]
[1731086736260,4.2735,2898.2,2897.4,0.7781]
[1731086736484,0.355,2898.3,2897.5,0.0021]
[1731086736686,12.38,2898.8,2897.6,0.7589]
[1731086737803,0.55,2898.7,2897.6,0.7589]
[1731086738304,12.38,2898.8,2897.7,0.0021]
[1731086738461,12.38,2899.2,2898.0,0.7905]
[1731086738768,1.2649,2899.1,2898.2,0.7905]
[1731086740012,3.89211008,2899.0,2898.2,0.7905]
[1731086740376,3.0,2898.9,2898.2,0.7905]
[1731086740572,0.55,2898.8,2898.2,0.7905]
[1731086740805,0.55,2899.0,2898.2,0.7905]
[1731086741108,3.0,2898.5,2897.6,0.0021]
[1731086741264,3.0,2898.3,2897.7,0.7809]
[1731086741468,3.0,2898.1,2897.1,0.7809]
[1731086741801,0.55,2897.8,2897.1,0.7809]
[1731086742103,3.355,2897.7,2897.1,0.7809]
[1731086743297,3.355,2897.7,2896.4,0.7836]
[1731086743298,0.55,2897.2,2896.4,0.7836]
[1731086743517,0.55,2896.9,2896.4,0.7836]
[1731086743743,0.355,2896.8,2896.4,0.7836]
[1731086744399,0.55,2896.7,2896.4,0.7836]
[1731086746409,0.355,2896.8,2896.4,0.7836]
[1731086748104,3.355,2896.8,2896.4,0.7836]
[1731086753496,3.355,2896.8,2895.9,0.0021]
[1731086753497,0.55,2896.7,2895.9,0.0021]
[1731086753843,3.3905,2896.6,2896.0,0.8004]
[1731086754024,15.7705,2896.6,2896.0,0.8004]
[1731086754737,15.38,2896.6,2896.1,0.0021]
[1731086755044,15.38,2896.6,2896.2,0.8004]
[1731086758964,15.38,2896.6,2895.3,0.01]
[1731086758965,12.38,2896.6,2896.5,0.0021]
[1731086759242,12.38,2896.6,2896.5,0.8279]
[1731086759536,12.38,2897.6,2896.8,0.7932]
[1731086760549,12.38,2897.6,2896.8,0.7953]
[1731086760735,3.0,2897.5,2896.8,0.7953]
[1731086761106,3.0,2897.5,2896.8,0.7932]
[1731086761336,0.55,2897.4,2896.8,0.7932]
[1731086761544,0.55,2897.2,2896.8,0.7932]
[1731086761902,0.55,2897.2,2896.3,0.7605]
[1731086762843,3.0,2897.0,2896.3,0.7605]
[1731086763052,3.0,2896.9,2896.3,0.7605]
[1731086768729,3.0,2897.1,2896.3,0.7605]
[1731086768924,4.5735,2897.1,2896.3,0.7605]
[1731086773260,3.0,2897.1,2896.5,0.0021]
[1731086773471,3.0,2897.1,2896.6,0.7521]
[1731086774416,3.0,2897.1,2896.7,0.0021]
[1731086774617,0.355,2897.3,2896.6,0.7521]
[1731086774856,0.55,2897.3,2896.6,0.7521]
[1731086775224,3.0,2897.2,2896.6,0.7521]
[1731086775426,0.55,2897.3,2896.6,0.7521]
[1731086775623,3.0,2897.4,2896.6,0.7521]
[1731086775932,3.0,2897.4,2896.7,0.0021]
[1731086776253,4.60848688,2897.4,2896.7,0.0021]
[1731086776621,4.60848688,2897.4,2896.6,0.7521]
[1731086776851,4.60848688,2897.4,2896.7,0.0021]
[1731086777436,4.60848688,2897.4,2896.8,0.7629]
[1731086778819,12.38,2897.5,2896.9,0.0021]
[1731086779137,13.0848688,2898.2,2897.5,0.7839]
[1731086779338,0.31783631,2898.1,2897.5,0.7839]
[1731086779659,12.38,2898.3,2897.7,0.8274]
[1731086780552,0.58857493,2898.2,2897.7,0.8274]
[1731086780723,0.58857493,2898.2,2896.3,3.01]
[1731086780724,2.95505274,2898.1,2897.1,0.8208]
[1731086780922,4.4713899,2898.0,2897.1,0.8229]
[1731086781122,0.5885125,2897.9,2897.1,0.8229]
[1731086781728,3.7048688,2898.0,2897.1,0.8208]
[1731086781729,3.0,2898.0,2897.1,0.8208]
[1731086781924,3.0,2897.8,2897.1,0.8229]
[1731086782148,0.94735608,2897.9,2897.1,0.8229]
[1731086782364,0.55,2897.8,2897.1,0.8208]
[1731086782530,3.55,2897.6,2897.1,0.8208]
[1731086782860,1.593,2897.5,2897.1,0.8208]
[1731086783059,15.93,2897.6,2897.1,0.8208]
[1731086783448,0.7048688,2897.8,2897.6,0.0021]
[1731086783649,12.90955635,2898.5,2896.8,0.02]
[1731086783650,12.38,2898.5,2897.7,0.8174]
[1731086783969,1.30848688,2898.4,2897.7,0.8174]
[1731086784465,13.68848688,2898.4,2897.7,0.8174]
[1731086784997,13.68848688,2898.4,2897.8,0.0021]
[1731086785725,3.0,2898.3,2897.8,0.0021]
[1731086785961,3.0,2898.3,2897.7,0.8174]
[1731086786120,1.66884869,2898.2,2897.8,0.0021]
[1731086786320,1.66884869,2898.2,2897.7,0.8174]
[1731086787149,1.66884869,2898.2,2897.0,0.763]
[1731086787150,16.51859265,2898.1,2897.0,0.763]
[1731086787482,3.55,2897.9,2897.2,0.0021]
[1731086787768,3.0,2897.9,2897.5,0.0021]
[1731086788063,4.68363674,2897.9,2897.5,0.0021]
[1731086788277,4.68363674,2897.9,2897.3,0.8279]
[1731086788813,4.68363674,2897.9,2897.3,0.83]
[1731086791707,4.68363674,2897.9,2897.3,0.8279]
[1731086791914,3.0,2897.9,2897.3,0.83]
[1731086792271,1.4097376,2898.5,2897.6,0.7931]
[1731086792272,3.7048688,2898.4,2897.6,0.7931]
[1731086792556,4.7875005,2898.3,2897.6,0.7931]
[1731086792676,4.0223602,2898.3,2897.6,0.7931]
[1731086792885,4.64023602,2898.2,2897.6,0.7931]
[1731086793204,1.64023602,2898.2,2897.6,0.7931]
[1731086794601,3.7048688,2898.3,2897.7,0.0021]
[1731086794602,3.0,2898.3,2897.7,0.0021]
[1731086794787,12.38,2898.4,2897.8,0.7965]
[1731086795116,12.38,2898.4,2897.2,3.35404444]
[1731086795117,12.38,2898.4,2898.1,0.7965]
[1731086795483,0.7048688,2898.8,2898.1,0.7965]
[1731086795710,2.17439182,2898.8,2898.1,0.7965]
[1731086796006,5.17439182,2898.8,2898.1,0.7965]
[1731086796214,0.7048688,2898.9,2898.3,0.7865]
[1731086796432,1.55519096,2898.9,2898.3,0.7865]
[1731086796586,0.7048688,2899.1,2898.3,0.7865]
[1731086796786,2.1742468,2899.1,2898.4,0.0021]
[1731086797415,1.46913872,2899.0,2898.4,0.0021]
[1731086797728,0.7048688,2899.1,2898.4,0.0021]
[1731086798025,1.57213306,2899.0,2898.3,0.7865]
[1731086798225,3.55,2898.8,2898.3,0.7865]
[1731086798424,0.55,2898.8,2898.3,0.7865]
[1731086799414,1.2548688,2898.9,2898.3,0.7865]
[1731086799727,0.55,2898.7,2898.3,0.7865]
[1731086799950,0.58749605,2898.8,2898.3,0.7865]
[1731086799951,0.55,2898.8,2898.3,0.7865]
[1731086800096,4.0573032,2899.1,2898.3,0.7865]
[1731086800097,0.7048688,2899.0,2898.3,0.7865]
[1731086800418,1.7142172,2899.0,2898.3,0.7865]
[1731086801193,1.7142172,2899.0,2898.4,0.0021]
[1731086801391,1.7142172,2899.0,2898.5,0.828]
[1731086801392,14.0942172,2899.0,2898.5,0.828]
[1731086801635,3.0,2898.9,2898.5,0.828]
[1731086803398,12.38,2899.0,2898.8,0.0021]
[1731086803598,1.4097376,2899.5,2898.9,0.793]
[1731086803599,3.7048688,2899.5,2898.9,0.793]
[1731086803841,1.60848688,2899.4,2899.0,0.0021]
[1731086804009,12.38,2899.6,2899.2,0.0021]
[1731086804641,12.38,2899.6,2899.3,0.8304]
[1731086804813,1.0573032,2900.0,2899.3,0.8304]
[1731086804814,13.0848688,2900.0,2899.3,0.8304]
[1731086805138,12.38,2900.0,2899.3,0.8304]
[1731086805451,4.8958536,2899.9,2899.3,0.8304]
[1731086805627,4.30848688,2899.9,2899.3,0.8304]
[1731086809442,4.30848688,2899.9,2899.4,0.0021]
[1731086809652,1.30848688,2899.9,2899.4,0.0021]
[1731086810007,1.30848688,2899.9,2899.6,0.0021]
[1731086810640,12.38,2900.4,2899.6,0.0021]
[1731086810641,0.55,2900.3,2899.6,0.0021]
[1731086811373,3.0,2900.3,2899.7,0.7586]
[1731086811850,6.34404444,2900.3,2899.7,0.7586]
[1731086812345,6.61304444,2900.3,2899.3,0.7586]
[1731086812507,6.61304444,2900.3,2898.0,0.13817301]
[1731086812508,3.0,2900.3,2899.6,0.7586]
[1731086813121,3.0,2900.4,2899.6,0.7586]
[1731086813663,12.38,2900.5,2899.8,0.0021]
[1731086813964,15.72404444,2900.6,2899.9,0.7586]
[1731086814108,0.40891073,2900.5,2899.9,0.7586]
[1731086814519,0.40891073,2900.5,2900.0,0.0021]
[1731086815512,0.40891073,2900.5,2899.9,0.7586]
[1731086815513,3.34404444,2900.3,2899.9,0.7586]
[1731086815750,3.0,2900.2,2899.9,0.7586]
[1731086815953,0.63440444,2900.1,2899.9,0.7586]
[1731086819175,3.0,2900.0,2899.9,0.7586]
[1731086819567,13.01440444,2900.1,2899.9,0.7586]
[1731086819858,13.01440444,2900.1,2898.8,0.01]
[1731086819859,3.0,2900.0,2899.6,0.8165]
[1731086820075,1.60144044,2899.9,2899.6,0.8165]
[1731086820230,1.60144044,2899.9,2899.2,0.8165]
[1731086820231,3.0,2899.8,2899.2,0.8165]
[1731086820567,3.0,2899.6,2899.3,0.0021]
[1731086820721,12.38,2899.7,2899.4,0.8165]
[1731086821253,12.38,2899.7,2899.6,0.8165]
[1731086821459,12.38,2900.2,2899.6,0.8165]
[1731086821631,1.57240444,2900.1,2899.9,0.0021]
[1731086823643,1.57240444,2900.1,2899.6,0.8165]
[1731086823868,1.57240444,2900.1,2899.9,0.0021]
[1731086824525,1.57240444,2900.1,2899.6,0.8165]
[1731086824947,13.95240444,2900.1,2899.6,0.8165]
[1731086825342,4.73928488,2900.0,2899.6,0.8165]
[1731086825539,4.73928488,2900.0,2899.3,0.0021]
[1731086825540,15.93,2899.9,2899.3,0.0021]
[1731086825752,15.93,2899.9,2899.2,0.8017]
[1731086826058,15.93,2899.9,2899.3,0.0021]
[1731086826453,15.93,2899.9,2899.2,0.8017]
[1731086827098,15.93,2899.9,2899.0,0.8017]
[1731086827099,3.0,2899.6,2899.0,0.8017]
[1731086827264,3.0,2899.4,2899.0,0.8017]
[1731086827467,6.34404444,2899.4,2899.0,0.8017]
[1731086827850,0.55,2899.3,2898.6,0.8078]
[1731086828054,0.55,2899.3,2898.7,0.0021]
[1731086828291,17.33430444,2899.2,2898.7,0.0021]
[1731086828673,17.33430444,2899.2,2898.6,0.8078]
[1731086829489,12.93,2899.1,2898.6,0.8078]
[1731086829691,16.27404444,2899.1,2898.6,0.8078]
[1731086829891,3.0,2899.0,2898.3,0.8012]
[1731086830134,14.30740444,2898.9,2898.3,0.8012]
[1731086830797,14.30740444,2898.9,2898.5,0.0021]
[1731086831290,14.30740444,2898.9,2898.3,0.8033]
[1731086831495,14.30740444,2898.9,2898.3,0.8012]
[1731086831794,14.30740444,2898.9,2898.1,0.0021]
[1731086831795,19.27404444,2898.8,2898.1,0.8034]
[1731086831996,20.70478488,2898.8,2898.1,0.8034]
[1731086832197,20.70478488,2898.8,2897.9,0.0021]
[1731086832694,17.36074044,2898.8,2898.3,0.0021]
[1731086832904,16.81074044,2898.8,2898.4,0.8098]
[1731086833955,1.68107404,2898.7,2898.0,0.8088]
[1731086834409,1.68107404,2898.7,2898.1,0.0021]
[1731086834571,1.95007404,2898.7,2898.1,0.0021]
[1731086834772,0.55,2898.6,2898.0,0.8088]
[1731086835088,3.55,2898.6,2898.0,0.8088]
[1731086835257,0.5500074,2898.5,2898.0,0.8088]
[1731086836091,3.0,2898.1,2897.4,0.7896]
[1731086836295,15.38,2898.1,2897.4,0.7896]
[1731086836500,0.55,2898.0,2897.4,0.7896]
[1731086836692,0.55,2898.0,2897.6,0.0021]
[1731086837072,0.55,2898.0,2897.4,0.7875]
[1731086837275,1.593,2897.9,2897.6,0.0021]
[1731086837887,1.593,2897.9,2897.5,0.0021]
[1731086838158,1.593,2897.9,2897.4,0.7875]
[1731086838364,12.38,2897.8,2897.1,0.7961]
[1731086838567,1.3973,2897.7,2897.1,0.7961]
[1731086839511,1.3973,2897.7,2897.3,0.0021]
[1731086839806,1.3973,2897.7,2897.1,0.7961]
[1731086840005,1.3973,2897.7,2897.5,0.0021]
[1731086840208,1.3973,2897.7,2897.1,0.7961]
[1731086840413,1.37773,2897.6,2897.1,0.7961]
[1731086840579,3.0,2897.8,2897.3,0.0021]
[1731086840999,3.0,2897.8,2897.5,0.0021]
[1731086841773,3.0,2897.8,2897.2,0.0021]
[1731086842080,3.0,2897.8,2897.5,0.0021]
[1731086843422,3.0,2897.8,2897.3,0.0021]
[1731086843711,4.538,2897.8,2897.3,0.0021]
[1731086844024,0.269,2897.7,2897.1,0.794]
[1731086844312,6.89404444,2897.6,2896.8,0.8129]
[1731086844523,3.55,2897.4,2897.0,0.0021]
[1731086844983,3.55,2897.4,2896.9,0.0021]
[1731086845518,3.55,2897.4,2897.0,0.0021]
[1731086845810,3.55,2897.4,2896.8,0.8108]
[1731086846012,1.78843044,2897.3,2896.8,0.8108]
[1731086846221,3.269,2897.2,2896.5,0.802]
[1731086846406,3.26899984,2897.2,2896.5,0.8041]
[1731086846603,6.34404444,2897.0,2895.9,0.8041]
[1731086846812,3.0,2896.6,2895.9,0.8041]
[1731086847022,3.0,2896.4,2895.9,0.0021]
[1731086847309,3.0,2896.2,2895.9,0.0021]
[1731086847480,3.0,2896.2,2895.6,0.7717]
[1731086847682,3.0,2896.2,2895.7,0.0021]
[1731086847883,3.0,2896.2,2895.9,0.0021]
[1731086848083,4.538,2896.2,2895.7,0.0021]
[1731086848304,3.0,2896.2,2895.9,0.0021]
[1731086849830,12.38,2896.3,2896.1,0.0021]
[1731086851706,0.55,2897.0,2896.1,0.0021]
[1731086851931,3.0,2896.8,2896.1,0.0021]
[1731086853092,0.55,2896.7,2896.1,0.0021]
[1731086853450,0.355,2896.6,2896.0,0.7521]
[1731086853738,0.819,2896.5,2895.9,0.0021]
[1731086853904,3.55,2896.0,2894.9,0.7992]
[1731086854107,0.269,2895.7,2895.1,0.0021]
[1731086854533,0.269,2895.7,2895.3,0.0021]
[1731086854844,3.0,2895.5,2894.9,0.0021]
[1731086855137,4.5649,2895.5,2894.9,0.0021]
[1731086858030,4.5649,2895.5,2894.6,0.8331]
[1731086858256,4.5649,2895.5,2894.9,0.0021]
[1731086858438,4.5649,2895.5,2894.6,0.831]
[1731086858439,4.5649,2895.5,2894.6,0.8331]
[1731086858612,4.5649,2895.5,2894.9,0.0021]
[1731086858809,1.69449,2895.4,2894.6,0.831]
[1731086859114,1.69449,2895.4,2894.4,0.0021]
[1731086859115,3.269,2895.2,2894.4,0.0021]
[1731086859958,3.0,2895.2,2894.8,0.7711]
[1731086860195,12.38,2895.7,2894.8,0.7711]
[1731086860196,3.0,2895.6,2894.8,0.7711]
[1731086860313,1.538,2895.5,2894.8,0.7711]
[1731086860949,4.88204444,2895.5,2894.8,0.7711]
[1731086861250,3.0,2895.4,2894.8,0.7711]
[1731086861420,3.269,2895.4,2894.8,0.7711]
[1731086863185,1.538,2895.5,2894.8,0.7711]
[1731086863514,3.0,2895.3,2894.8,0.7711]
[1731086865249,5.02620444,2895.3,2894.8,0.7711]
[1731086866266,5.02620444,2895.3,2894.0,0.7672]
[1731086866267,3.34404444,2894.9,2894.0,0.7672]
[1731086866558,3.34404444,2894.9,2893.7,0.0021]
[1731086866559,3.0,2894.1,2893.7,0.0021]
[1731086866712,15.38,2894.1,2893.7,0.0021]
[1731086866918,17.27930444,2894.1,2893.7,0.0021]
[1731086867258,3.0,2893.8,2893.1,0.7651]
[1731086867413,1.89930444,2894.1,2893.1,0.7651]
[1731086867414,6.34404444,2893.6,2893.3,0.0021]
[1731086867618,6.34404444,2893.6,2893.1,0.7651]
[1731086867619,7.77926496,2893.6,2893.1,0.7651]
[1731086867817,3.34404444,2893.3,2893.0,0.0021]
[1731086868333,3.34404444,2893.3,2892.9,0.0021]
[1731086868530,3.0,2893.2,2892.7,0.8267]
[1731086868863,6.34404444,2893.3,2892.8,0.0021]
[1731086869031,6.97844888,2893.3,2892.8,0.0021]
[1731086869548,3.0,2893.3,2892.8,0.0021]
[1731086870722,3.0,2893.3,2892.7,0.8267]
[1731086870933,3.0,2893.3,2892.9,0.0021]
[1731086871757,3.0,2893.3,2892.7,0.8288]
[1731086871920,3.0,2893.3,2892.5,0.0021]
[1731086872125,17.76946143,2893.2,2892.5,0.0021]
[1731086872359,3.0,2893.1,2892.5,0.0021]
[1731086875066,3.0,2892.9,2892.5,0.0021]
[1731086875789,3.0,2892.7,2892.2,0.0021]
[1731086875959,0.68514614,2892.6,2892.2,0.0021]
[1731086876160,12.38,2892.6,2892.2,0.0021]
[1731086876365,3.0,2892.5,2892.2,0.0021]
[1731086878593,3.0,2892.5,2892.0,0.8047]
[1731086878761,3.0,2892.3,2891.7,0.7855]
[1731086878996,1.92314614,2892.2,2891.7,0.7855]
[1731086879287,3.0,2892.3,2891.7,0.7855]
[1731086879452,16.23146143,2892.4,2892.1,0.0021]
[1731086879885,3.0,2892.3,2891.7,0.7855]
[1731086880254,3.0,2892.3,2891.7,0.4855]
[1731086881594,3.0,2892.3,2891.7,0.4355]
[1731086882053,12.38,2892.4,2891.9,0.0021]
[1731086882383,12.38,2892.4,2892.3,0.0021]
[1731086882825,12.38,2892.4,2891.9,0.0021]
[1731086883184,12.38,2892.4,2892.2,0.0021]
[1731086884219,3.0,2892.6,2892.2,0.0021]
[1731086884385,3.0,2892.6,2892.2,0.8084]
[1731086884721,3.0,2892.7,2892.2,0.8084]
[1731086885017,1.92314614,2892.6,2892.3,0.0021]
[1731086885396,3.0,2892.7,2892.3,0.0021]
[1731086885718,12.38,2893.1,2892.7,0.8096]
[1731086886531,12.38,2893.1,2892.8,0.0021]
[1731086886735,12.38,2893.5,2892.8,0.0021]
[1731086886907,12.76514614,2893.5,2892.8,0.0021]
[1731086887243,12.38,2893.4,2893.0,0.0021]
[1731086888614,3.0,2893.3,2893.0,0.0021]
[1731086889444,3.0,2893.4,2893.0,0.0021]
[1731086889737,4.96166076,2893.4,2893.0,0.0021]
[1731086889947,8.31460354,2893.4,2893.0,0.0021]
[1731086891218,8.31460354,2893.4,2892.9,0.0021]
[1731086891417,8.31460354,2893.4,2892.7,0.8117]
[1731086891619,3.35294278,2893.1,2892.7,0.8117]
[1731086891815,3.68823706,2893.1,2892.9,0.0021]
[1731086893837,0.33529428,2893.1,2892.9,0.0021]
[1731086894048,3.35294278,2893.3,2892.9,0.0021]
[1731086894049,3.0,2893.2,2892.9,0.0021]
[1731086896154,3.0,2893.2,2891.5,7.12544278]
[1731086896155,3.0,2892.9,2892.3,0.753]
[1731086896360,3.35294278,2892.6,2892.3,0.753]
[1731086896715,3.35294278,2892.6,2892.5,0.0021]
[1731086896918,3.35294278,2892.9,2892.5,0.0021]
[1731086897159,3.63529428,2892.8,2892.6,0.0021]
[1731086897840,3.63529428,2892.8,2892.3,0.753]
[1731086898021,3.63529428,2892.8,2892.6,0.0021]
[1731086898225,0.01,2892.4,2891.7,0.06915387]
[1731086898457,3.0,2891.7,2891.6,0.04]
[1731086898753,3.63529428,2891.7,2891.6,0.04]
[1731086898966,3.0,2891.7,2891.6,0.04]
[1731086902457,12.38,2892.2,2891.6,0.04]
[1731086902458,6.35294278,2892.1,2891.6,0.04]
[1731086903332,3.35294278,2891.8,2891.6,0.04]
[1731086903540,3.35294278,2891.8,2891.7,0.0021]
[1731086909682,3.35294278,2891.8,2891.7,0.7892]
[1731086909982,3.35294278,2892.1,2891.7,0.7892]
[1731086910193,3.0,2892.0,2891.7,0.7892]
[1731086910687,3.35294278,2892.1,2891.9,0.0021]
[1731086912205,3.35294278,2892.4,2892.2,0.0021]
[1731086912495,3.35294278,2892.7,2892.3,0.7542]
[1731086912844,3.35294278,2892.7,2892.5,0.0021]
[1731086915872,3.35294278,2892.7,2892.3,0.7563]
[1731086916073,3.35294278,2892.7,2892.6,0.0021]
[1731086916511,12.38,2892.9,2892.6,0.0021]
[1731086916728,6.35294278,2893.0,2892.8,0.0021]
[1731086916911,3.35294278,2893.0,2892.9,0.7967]
[1731086920232,3.0,2893.4,2892.9,0.7967]
[1731086920534,3.0,2893.4,2891.8,3.35294278]
[1731086920535,1.538,2893.3,2892.7,0.0021]
[1731086921633,1.538,2893.3,2893.0,0.0021]
[1731086921794,6.35294278,2893.4,2893.0,0.0021]
[1731086921993,0.31812817,2893.3,2893.0,0.0021]
[1731086922225,6.35294278,2893.4,2893.0,0.0021]
[1731086922836,18.73294278,2893.4,2893.0,0.0021]
[1731086923429,1.87329428,2893.3,2893.0,0.0021]
[1731086923592,15.38,2893.4,2893.0,0.7969]
[1731086923794,15.38,2893.4,2893.2,0.0021]
[1731086924504,12.38,2893.4,2893.2,0.0021]
[1731086925045,12.38,2893.4,2893.0,0.7948]
[1731086925831,12.38,2893.4,2893.1,0.0021]
[1731086926007,13.618,2893.4,2893.1,0.0021]
[1731086926203,13.618,2893.4,2893.2,0.0021]
[1731086927455,12.38,2893.4,2893.2,0.0021]
[1731086928748,3.0,2893.5,2893.2,0.0021]
[1731086928946,3.0,2893.5,2893.0,0.7969]
[1731086929168,3.0,2893.5,2893.2,0.0021]
[1731086929645,12.38,2893.6,2893.2,0.0021]
[1731086929835,3.0,2893.6,2893.2,0.0021]
[1731086931254,3.0,2893.6,2893.4,0.0021]
[1731086931412,12.38,2893.8,2893.6,0.0021]
[1731086931812,12.38,2894.4,2894.0,0.0021]
[1731086932212,12.38,2894.4,2894.2,0.0021]
[1731086932454,13.618,2894.4,2894.2,0.0021]
[1731086932811,13.618,2894.4,2894.3,0.7574]
[1731086933238,12.38,2894.4,2894.3,0.7574]
[1731086934651,12.38,2894.8,2894.7,0.0021]
[1731086934849,12.38,2895.1,2894.7,0.0021]
[1731086935613,3.0,2895.0,2894.8,0.0021]
[1731086936414,12.38,2895.1,2895.0,0.0021]
[1731086936621,13.618,2895.1,2895.0,0.0021]
[1731086936818,14.237,2895.1,2894.6,0.0021]
[1731086937137,14.237,2895.1,2894.8,0.0021]
[1731086937864,3.0,2895.0,2894.8,0.0021]
[1731086939695,3.0,2895.0,2894.4,0.0021]
[1731086939851,3.0,2894.8,2894.4,0.0021]
[1731086940546,12.38,2894.7,2894.4,0.0021]
[1731086943562,12.38,2894.7,2894.6,0.0021]
[1731086944559,1.238,2895.1,2894.6,0.0021]
[1731086944883,1.238,2895.1,2894.8,0.0021]
[1731086944884,3.0,2895.1,2894.8,0.0021]
[1731086947091,12.38,2894.5,2894.3,0.0021]
[1731086947455,12.38,2894.5,2893.9,0.7676]
[1731086947991,12.38,2894.5,2894.3,0.0021]